Cogmind - Beta 10.2 *** ADVENTURER MODE // 2020.12.08 @ 15:57:29 // Halloween2020/ForbiddenLore Player: Luigi Panache Result: Destroyed by S-27 Virus with Autogun Performance ------------- Evolutions (6) 3000 Regions Visited (15) 3000 Robots Destroyed (91) 455 Value Destroyed (4028) 4028 Prototype IDs (47) 940 Alien Tech Used (2) 400 Bonus (413) 413 TOTAL SCORE: 12236 Bonus ------- Follower Combat Kills 61 Aligned with FarCom 300 Met Zhirov 300 Friendly Fire -248 Cogmind --------- Core Integrity 0/1150 Matter 300/300 Energy 100/100 System Corruption 34% Temperature Cool (0) Movement Core (300) Ox5 Location -4/Factory Parts ------- > --- POWER (2) -------- (None) > --- PROPULSION (6) --- (None) > --- UTILITY (7) ------ Large Storage Unit Improved Target Analyzer Improved Target Analyzer > --- WEAPON (4) ------- (None) > --- INVENTORY (10) --- Micro Fission Core Micro Fission Core Gravity Neutralizing Apparatus Improved Weapon Cycler Cloak of Protection Experimental Utility Shielding Peak State ------------ > --- POWER ------------ Heavy Antimatter Reactor > --- PROPULSION ------- Light Treads Carbon-fiber Leg Carbon-fiber Leg Field Propulsion Drive > --- UTILITY ---------- Advanced Power Amplifier Large Storage Unit Improved Energy Well Improved Salvage Targeting Computer Improved Weapon Cycler Improved Medium Armor Plating Advanced Hacking Suite > --- WEAPON ----------- High-powered Shock Rifle High-powered Shock Rifle Heavy Neutron Cannon Katana > --- INVENTORY -------- Reinforced Deuterium Engine Micro Fission Core Gravity Neutralizing Apparatus Improved Particle Charger Cloak of Protection Experimental Utility Shielding Makeshift Kinetic Plating Component Analysis Suite Heavy Beamcaster Katana [Rating: 81] Favorites ----------- Power Reinforced Deuterium Engine Engine Reinforced Deuterium Engine Power Core Neutrino Core Reactor Heavy Antimatter Reactor Propulsion Carbon-fiber Leg Treads Light Treads Leg Carbon-fiber Leg Wheel Armored Huge Wheel Hover Unit Makeshift Hover Unit Flight Unit Flight Unit Utility Large Storage Unit Device Improved Weapon Cycler Storage Large Storage Unit Processor Improved Salvage Targeting Computer Hackware Advanced Hacking Suite Protection Makeshift Kinetic Plating Weapon Gauss Rifle Energy Gun Advanced Beam Rifle Energy Cannon Heavy Neutron Cannon Ballistic Gun Gauss Rifle Launcher Advanced EMP Blaster Impact Weapon Powered Hammer Slashing Weapon Scythe Build | -11 -10 -10 -10 -9 -8 -7 -7 -7 -6 -5 -5 -5 -5 -4 -4 ------- Run | Scr Mat Min Exi Min Mat Fac Low Low Fac Fac Upp Upp Zhi Pro Fac Slots Evolved 12 | . . . . . 4 2 . . 2 2 . . . . 2 Power 1 | . . . . . . . . . . . . . . . 1 Propulsion 4 | . . . . . 2 . . . . 2 . . . . . Utility 5 | . . . . . 2 . . . 2 . . . . . 1 Weapon 2 | . . . . . . 2 . . . . . . . . . Parts Attached 181 | 7 13 1 . . 52 6 5 18 13 7 10 7 7 10 25 Power 15 | 1 3 . . . 2 . 1 1 . 1 . 1 1 . 4 Engine 11 | 1 3 . . . 2 . 1 1 . . . 1 . . 2 Core 2 | . . . . . . . . . . 1 . . . . 1 Reactor 2 | . . . . . . . . . . . . . 1 . 1 Propulsion 49 | 2 3 . . . 14 2 1 6 4 4 2 1 . 5 5 Treads 10 | . . . . . 4 . 1 2 1 . . . . 2 . Leg 24 | 2 . . . . 8 1 . 2 3 4 2 . . 2 . Wheel 1 | . . . . . . 1 . . . . . . . . . Hover 5 | . . . . . . . . . . . . 1 . 1 3 Flight 9 | . 3 . . . 2 . . 2 . . . . . . 2 Utility 55 | 2 2 . . . 13 1 1 5 5 1 6 2 6 1 10 Device 22 | 1 1 . . . 5 . . 2 2 1 2 1 4 . 3 Storage 9 | . 1 . . . 3 . . 1 . . 1 . . . 3 Processor 7 | 1 . . . . 1 . . . . . 1 1 . . 3 Hackware 3 | . . . . . 1 . . . 1 . . . 1 . . Protection 14 | . . . . . 3 1 1 2 2 . 2 . 1 1 1 Artifact . | . . . . . . . . . . . . . . . . Weapon 62 | 2 5 1 . . 23 3 2 6 4 1 2 3 . 4 6 Energy Gun 25 | . 1 . . . 14 1 . . 1 . 1 1 . 3 3 Energy Cannon 1 | . . . . . . . . . . . . . . . 1 Ballistic Gun 21 | 2 4 1 . . 5 1 1 1 3 1 1 1 . . . Ballistic Cannon . | . . . . . . . . . . . . . . . . Launcher 6 | . . . . . 2 1 1 2 . . . . . . . Special Weapon . | . . . . . . . . . . . . . . . . Impact Weapon 3 | . . . . . 2 . . 1 . . . . . . . Slashing Weapon 6 | . . . . . . . . 2 . . . 1 . 1 2 Piercing Weapon . | . . . . . . . . . . . . . . . . Special Melee Weapon . | . . . . . . . . . . . . . . . . Unidentified Prototypes 13 | . . . . . 5 1 . . 1 . . . 5 . 1 Parts Lost 72 | . . . . . 6 1 4 9 5 1 8 5 . 9 24 Power 6 | . . . . . . . 1 1 . . . 1 . . 3 Propulsion 27 | . . . . . 4 . . 4 2 . 2 3 . 5 7 Utility 17 | . . . . . . 1 1 2 . 1 4 . . . 8 Weapon 22 | . . . . . 2 . 2 2 3 . 2 1 . 4 6 Highest Loss Streak 6 | . . . . . 5 1 3 5 5 1 3 3 . 6 6 Average Slot Usage (%) 85 | . 94 100 100 100 97 98 88 89 89 83 83 68 81 84 56 Engine 5 | . 14 14 14 14 9 7 6 5 6 2 . 1 3 . . Treads 4 | . . . . . 4 15 15 7 3 5 1 . . 5 2 Leg 14 | . 9 . . . 23 12 . 12 16 24 31 13 11 11 4 Flight 5 | . 17 28 28 28 7 . . 5 5 . . . . . . Device 9 | . 14 14 14 14 7 8 7 5 9 11 13 10 10 11 7 Storage 9 | . 6 14 14 14 18 15 15 7 6 5 4 5 5 5 8 Processor 2 | . 7 . . . 1 . . . . . 1 7 9 5 7 Hackware 1 | . . . . . 3 . . . 6 1 . . 1 5 2 Protection 5 | . . . . . 4 5 6 9 7 5 2 5 5 5 3 Energy Gun 6 | . 6 14 14 14 8 23 14 . . . 1 2 5 8 6 Ballistic Gun 9 | . 17 14 14 14 7 4 6 14 15 15 12 8 11 1 . Launcher 1 | . . . . . . 2 6 6 2 . . . . . . Slashing Weapon 3 | . . . . . . . . 6 6 5 5 5 5 10 2 Naked Turns 1 | . . . . . . . . . . . . . . . 1 Heaviest Build 129 | 7 14 14 14 14 39 43 49 114 129 121 120 61 61 61 75 Greatest Support 105 | 20 20 14 14 14 42 42 28 30 55 85 105 35 17 40 32 Greatest Overweight (x) 22 | 1 . . . . 2 1 1 11 7 2 1 3 3 3 22 Average Overweight (x) . | . . . . . . . 1 1 3 1 . 1 3 1 1 Largest Inventory Capacity 30 | 4 8 8 8 8 10 10 10 30 24 24 24 10 10 10 10 Average Capacity 11 | 4 5 8 8 8 8 10 10 12 24 24 12 10 10 10 9 Most Carried 24 | 4 7 8 8 8 10 10 10 13 20 24 24 10 10 10 10 Average Carried 9 | 1 4 7 7 8 8 9 9 9 15 21 10 7 9 10 7 Final Capacity 24 | 4 8 8 8 8 10 10 10 24 24 24 10 10 10 10 10 Final Carried 24 | 4 7 8 8 8 10 10 9 13 20 24 6 9 10 10 6 Class Distribution -------------------- 61% | Scavenger-Mutant 8% | Scavenger-Tank 7% | Mutant 6% | Derelict-Tank 5% | Scavenger-Skirmisher Dominant Class ---------------- Scavenger-Mutant | -10/Materials Scavenger-Mutant | -10/Mines Scavenger-Mutant | -10/Exiles Scavenger-Mutant | -9/Mines Scavenger-Mutant | -8/Materials Scavenger-Skirmisher | -7/Factory Tank | -7/Lower Caves Scavenger-Mutant | -7/Lower Caves Scavenger-Tank | -6/Factory Scavenger-Skirmisher | -5/Factory Scavenger-Mutant | -5/Upper Caves Derelict-Tank | -5/Upper Caves Derelict-Tank | -5/Zhirov Scavenger-Mutant | -4/Proximity Caves Scavenger-Mutant | -4/Factory Resources | -11 -10 -10 -10 -9 -8 -7 -7 -7 -6 -5 -5 -5 -5 -4 -4 ----------- Run | Scr Mat Min Exi Min Mat Fac Low Low Fac Fac Upp Upp Zhi Pro Fac Matter Collected 3127 | 276 122 62 . 10 709 86 53 563 155 165 421 129 . 248 128 Remotely . | . . . . . . . . . . . . . . . . Salvage Created 5012 | 94 133 52 . . 1030 195 379 1046 234 288 660 315 . 422 164 Parts 241 | 5 12 1 . . 59 10 11 23 10 11 23 22 . 42 12 Haulers Intercepted 4 | . 2 . . . 2 . . . . . . . . . . Recyclers Shooed 1 | . . . . . . . . . . . . . . . 1 Parts Field Recycled . | . . . . . . . . . . . . . . . . Retrieved Matter . | . . . . . . . . . . . . . . . . Parts Self-Destructed 97 | . . . . . . . 10 22 . . 20 11 . 34 . Prevented 7 | . . . . . . . . 5 . . . . . 2 . Kills | -11 -10 -10 -10 -9 -8 -7 -7 -7 -6 -5 -5 -5 -5 -4 -4 ------- Run | Scr Mat Min Exi Min Mat Fac Low Low Fac Fac Upp Upp Zhi Pro Fac Combat Hostiles Destroyed 78 | . 3 1 . . 16 2 6 17 5 3 10 6 . 6 3 Melee 4 | . . . . . . . . . . . . . . 3 1 Guns 65 | . 3 1 . . 15 1 6 12 3 3 10 6 . 3 2 AOE 5 | . . . . . . . . 3 2 . . . . . . Classes Destroyed 16 | 2 2 1 . . 3 1 . 2 2 . 1 2 . . . Worker 1 | . . . . . 1 . . . . . . . . . . Builder 1 | . . . . . . . . . 1 . . . . . . Tunneler 1 | 1 . . . . . . . . . . . . . . . Hauler 4 | . 2 . . . 2 . . . . . . . . . . Recycler 3 | 1 . . . . . 1 . . . 1 . . . . . Watcher 2 | . . . . . 2 . . . . . . . . . . Swarmer 11 | . 3 . . . . . . 2 1 . . 5 . . . Grunt 33 | . . 1 . . 12 . 2 7 1 2 8 . . . . Brawler 2 | . . . . . . . . 2 . . . . . . . Duelist 4 | . . . . . . . . 2 1 1 . . . . . Sentry 8 | . . . . . 4 1 2 1 . . . . . . . Hunter 4 | . . . . . . . . . 2 . 2 . . . . Programmer 13 | . . . . . . 1 2 1 . . . . . 6 3 Decomposer 1 | . . . . . . . . 1 . . . . . . . Samaritan 2 | . . . . . . . . . . . . 2 . . . Tinkerer 1 | . . . . . . . . . . . 1 . . . . Savage 2 | . . . . . . . . 2 . . . . . . . Butcher 1 | . . . . . . . . . . . . . . 1 . Mutant 1 | . . . . . . . . . . . . 1 . . . Best Kill Streak 13 | 1 3 1 . . 3 2 5 13 6 3 5 5 . 2 1 Combat Bots Only 13 | . 3 1 . . 3 1 5 13 5 2 5 5 . 2 1 Max Kills in Single Turn 2 | 1 1 1 . . 2 1 1 2 2 2 1 1 . 2 1 Gunslinging 1 | . . . . . . . . . . 1 . . . . . Exploded 2 | . . . . . . . . 2 2 . . . . . . Melee 1 | . . . . . . . . . . . . . . 1 1 Uniques/NPCs Destroyed . | . . . . . . . . . . . . . . . . Combat | -11 -10 -10 -10 -9 -8 -7 -7 -7 -6 -5 -5 -5 -5 -4 -4 -------- Run | Scr Mat Min Exi Min Mat Fac Low Low Fac Fac Upp Upp Zhi Pro Fac Damage Taken 9466 | . 70 45 . . 988 90 800 1086 796 293 1229 295 . 826 2948 Core 1735 | . 6 . . . 148 15 85 89 45 14 113 5 . 62 1153 Absorbed by Shields 24 | . . . . . . . . . . . . . . . 24 Core Remaining (%) 85 | 100 . . . 97 73 . . 73 94 . . . . 73 . Volleys Fired 291 | 3 21 5 . . 80 5 19 41 14 12 34 20 . 22 15 Largest 4 | 2 2 2 . . 2 4 3 3 2 3 3 2 . 3 3 Hottest 258 | 40 70 70 . . 122 211 183 122 108 89 130 61 . 126 258 Shots Fired 551 | 5 35 10 . . 132 17 40 84 21 28 96 25 . 37 21 Gun 540 | 5 35 10 . . 130 17 39 80 20 28 96 25 . 37 18 Cannon 3 | . . . . . . . . . . . . . . . 3 Launcher 8 | . . . . . 2 . 1 4 1 . . . . . . Special . | . . . . . . . . . . . . . . . . Kinetic 352 | 5 26 5 . . 73 2 4 69 14 28 83 25 . 18 . Thermal 166 | . 9 5 . . 57 15 35 11 6 . 13 . . . 15 Explosive . | . . . . . . . . . . . . . . . . Electromagnetic 33 | . . . . . 2 . 1 4 1 . . . . 19 6 Robot Hit Streak 39 | 3 13 7 . . 33 25 31 37 15 23 39 18 . 31 14 Robot Miss Streak 4 | 1 3 1 . . 4 1 2 3 1 1 2 2 . 1 1 Penetration Max 1 | . . . . . . . . 1 1 1 1 1 . 1 . Secondary Targets 12 | . . . . . 2 . 2 3 1 1 2 1 . . . Max Gunslinging Chain 1 | . . . . . 1 . 1 1 1 1 1 1 . . . Shots Hit Robots 487 | 3 28 8 . . 108 13 36 76 20 26 78 20 . 40 31 Core Hits 211 | 3 7 3 . . 46 5 13 34 10 9 32 13 . 24 12 Critical Hits 15 | . 1 . . . . . . 3 1 1 6 3 . . . Critical Kills 8 | . 1 . . . . . . . 1 1 2 3 . . . Critical Parts Destroyed 6 | . . . . . . . . 2 . . 4 . . . . Melee Attacks 41 | . . . . . 1 . . 1 3 1 10 . . 8 17 Impact 1 | . . . . . 1 . . . . . . . . . . Slashing 40 | . . . . . . . . 1 3 1 10 . . 8 17 Piercing . | . . . . . . . . . . . . . . . . Sneak Attacks 1 | . . . . . . . . . . . . . . . 1 Combat Hostiles . | . . . . . . . . . . . . . . . . Follow-up Attacks 1 | . . . . . . . . . . . . . . 1 . Damage Inflicted 10931 | 50 286 82 . . 1623 284 855 2268 904 617 1619 501 . 918 924 Guns 8732 | 50 286 82 . . 1562 284 773 1654 421 617 1619 501 . 563 320 Cannons 98 | . . . . . . . . . . . . . . . 98 Explosions 1199 | . . . . . 61 . 82 515 453 . . . . 88 . Melee 877 | . . . . . . . . 99 30 . . . . 267 481 Ramming 25 | . . . . . . . . . . . . . . . 25 Kinetic 5926 | 50 173 32 . . 790 . 78 1434 297 617 1445 501 . 509 . Thermal 3234 | . 113 50 . . 772 284 695 220 452 . 174 . . 88 386 Explosive . | . . . . . . . . . . . . . . . . Electromagnetic 869 | . . . . . 61 . 82 515 125 . . . . 54 32 Impact . | . . . . . . . . . . . . . . . . Slashing 877 | . . . . . . . . 99 30 . . . . 267 481 Piercing . | . . . . . . . . . . . . . . . . Highest Corruption 34 | . 1 1 1 1 6 . 2 4 . . . . . 11 34 Average Corruption 5 | . 1 1 1 1 5 . 2 3 . . . . . 8 19 Corruption Purged . | . . . . . . . . . . . . . . . . Effects 112 | . 2 1 1 1 19 . 2 41 . . . . . 17 28 Message Errors 27 | . 2 1 . . 5 . 1 8 . . . . . 6 4 Matter Fused 30 | . . . . . 6 . . 14 . . . . . 4 6 Heat Flow Errors 18 | . . . . . 5 . 1 7 . . . . . 1 4 Energy Discharges 13 | . . . . . 2 . . 4 . . . . . 3 4 Data Loss (minor) 9 | . . . 1 1 1 . . 3 . . . . . . 3 Data Loss (major) 1 | . . . . . . . . . . . . . . . 1 Misdirections 4 | . . . . . . . . . . . . . . 1 3 Targeting Errors 9 | . . . . . . . . 5 . . . . . 2 2 Weapon Failures 1 | . . . . . . . . . . . . . . . 1 Overload Shots . | . . . . . . . . . . . . . . . . Overflow Damage 266 | . . . . . . . . 79 67 . . . . 14 106 Projectiles 33 | . . . . . . . . . . . . . . . 33 Explosions 99 | . . . . . . . . 23 62 . . . . 14 . Melee 134 | . . . . . . . . 56 5 . . . . . 73 Knockbacks . | . . . . . . . . . . . . . . . . Impact . | . . . . . . . . . . . . . . . . Kinetic . | . . . . . . . . . . . . . . . . Secondary . | . . . . . . . . . . . . . . . . Self-Inflicted Damage 249 | . . . . . 31 . . 76 99 . . . . 36 7 Shots 9 | . . . . . 2 . . 4 2 . . . . 1 . Rammed 24 | . . . . . . . . . . . . . . . 24 Targets Rammed 24 | . . . . . . . . . . . . . . . 24 Kicked . | . . . . . . . . . . . . . . . . Crushed . | . . . . . . . . . . . . . . . . Highest Temperature 359 | . 110 118 . . 359 146 126 189 . 1 74 4 . 211 356 Average Temperature 90 | . 47 57 . . 117 65 77 71 . 1 18 2 . 87 144 Received Heat Transfer 1962 | . . 33 . . 702 18 219 279 243 108 360 . . . . Effects 1 | . . . . . . . . . . . . . . . 1 Energy Bleed 1 | . . . . . . . . . . . . . . . 1 Siege Activations . | . . . . . . . . . . . . . . . . Robots Corrupted 2 | . . . . . . . . 2 . . . . . . . Combat Hostiles 2 | . . . . . . . . 2 . . . . . . . Parts Fried 4 | . . . . . 1 . . 3 . . . . . . . Impact Corruptions . | . . . . . . . . . . . . . . . . Robots Melted 2 | . . . . . 1 1 . . . . . . . . . Combat Hostiles 2 | . . . . . 1 1 . . . . . . . . . Parts Melted 10 | . 1 . . . . 1 6 . . . 1 . . . 1 Heat Transferred 5184 | . 333 148 . . 1406 481 1184 407 422 . 333 . . 50 420 Parts Sabotaged . | . . . . . . . . . . . . . . . . Parts Stolen . | . . . . . . . . . . . . . . . . Parts Stripped . | . . . . . . . . . . . . . . . . Power Chain Reactions 1 | . . . . . . . . . . . . . . 1 . Missiles Intercepted . | . . . . . . . . . . . . . . . . Alert | -11 -10 -10 -10 -9 -8 -7 -7 -7 -6 -5 -5 -5 -5 -4 -4 ------- Run | Scr Mat Min Exi Min Mat Fac Low Low Fac Fac Upp Upp Zhi Pro Fac Peak Influence 126 | 10 87 81 . . 126 88 . . 121 91 . . . . 62 Initial 35 | . 5 13 . . . 35 . . . 5 . . . . . Average 34 | 4 25 60 . . 40 73 . . 18 52 . . . . 11 Maximum Alert Level . | . . . . . . . . . . . . . . . . Low Security (%) 100 | 100 100 100 . 100 100 100 . . 100 100 . . . . 100 Level 1 . | . . . . . . . . . . . . . . . . Level 2 . | . . . . . . . . . . . . . . . . Level 3 . | . . . . . . . . . . . . . . . . Level 4 . | . . . . . . . . . . . . . . . . Level 5 . | . . . . . . . . . . . . . . . . High Security . | . . . . . . . . . . . . . . . . Max Security . | . . . . . . . . . . . . . . . . Squads Dispatched 8 | . . . . . 2 . . 1 1 2 . . . . 2 Investigation 3 | . . . . . 1 . . . 1 1 . . . . . Extermination 3 | . . . . . . . . . . 1 . . . . 2 Reinforcement 1 | . . . . . 1 . . . . . . . . . . Assault 1 | . . . . . . . . 1 . . . . . . . Garrison . | . . . . . . . . . . . . . . . . Intercept . | . . . . . . . . . . . . . . . . Construction Impeded 1 | . . . . . 1 . . . . . . . . . . Haulers Reinforced . | . . . . . . . . . . . . . . . . Stealth | -11 -10 -10 -10 -9 -8 -7 -7 -7 -6 -5 -5 -5 -5 -4 -4 --------- Run | Scr Mat Min Exi Min Mat Fac Low Low Fac Fac Upp Upp Zhi Pro Fac Distress Signals 2 | . . . . . 2 . . . . . . . . . . Communications Jammed . | . . . . . . . . . . . . . . . . Distress Signals . | . . . . . . . . . . . . . . . . Times Spotted 114 | . 7 3 . . 25 2 6 26 10 5 11 5 . 6 8 Peak Tracking Total 10 | . 3 2 . . 3 1 5 10 5 4 5 4 . 3 4 Tactical Retreats 6 | . 1 1 . . 1 . . 2 . . 1 . . . . Traps | -11 -10 -10 -10 -9 -8 -7 -7 -7 -6 -5 -5 -5 -5 -4 -4 ------- Run | Scr Mat Min Exi Min Mat Fac Low Low Fac Fac Upp Upp Zhi Pro Fac Traps Triggered 4 | . 2 . . . 1 . . . 1 . . . . . . Indirectly . | . . . . . . . . . . . . . . . . Trap Hack Attempts . | . . . . . . . . . . . . . . . . Triggered . | . . . . . . . . . . . . . . . . Disarmed . | . . . . . . . . . . . . . . . . Reprogrammed . | . . . . . . . . . . . . . . . . Reused . | . . . . . . . . . . . . . . . . Traps Extracted . | . . . . . . . . . . . . . . . . Installed . | . . . . . . . . . . . . . . . . Triggered . | . . . . . . . . . . . . . . . . Machines | -11 -10 -10 -10 -9 -8 -7 -7 -7 -6 -5 -5 -5 -5 -4 -4 ---------- Run | Scr Mat Min Exi Min Mat Fac Low Low Fac Fac Upp Upp Zhi Pro Fac Machines Disabled 5 | . . . . . 2 . . . 1 1 . 1 . . . Max in Single Turn 1 | . . . . . 1 . . . 1 1 . 1 . . . Garrison Access 2 | . . . . . 1 1 . . . . . . . . . Machines Sabotaged . | . . . . . . . . . . . . . . . . Garrisons Compromised . | . . . . . . . . . . . . . . . . Overloaded Fab Kills . | . . . . . . . . . . . . . . . . Fab Network Shutdowns . | . . . . . . . . . . . . . . . . Hacking | -11 -10 -10 -10 -9 -8 -7 -7 -7 -6 -5 -5 -5 -5 -4 -4 --------- Run | Scr Mat Min Exi Min Mat Fac Low Low Fac Fac Upp Upp Zhi Pro Fac Machines Accessed 38 | . 6 . 1 1 8 3 2 1 2 2 . 1 9 . 2 Terminals 16 | . 5 . . 1 4 1 . . 1 1 . 1 . . 2 Fabricators . | . . . . . . . . . . . . . . . . Repair Stations 5 | . 1 . . . 2 . . . 1 1 . . . . . Recycling Units 1 | . . . . . . 1 . . . . . . . . . Scanalyzers 1 | . . . . . 1 . . . . . . . . . . Garrison Access 2 | . . . . . 1 1 . . . . . . . . . Total Hacks 129 | . 23 . 1 2 23 5 8 1 6 7 . 1 47 . 5 Successful 109 | . 16 . 1 . 21 4 8 1 4 5 . 1 47 . 1 Failed 20 | . 7 . . 2 2 1 . . 2 2 . . . . 4 Catastrophic 4 | . 1 . . 1 . . . . . 1 . . . . 1 Database Lockouts . | . . . . . . . . . . . . . . . . Manual 33 | . 16 . 1 . 8 2 . . . 5 . . . . 1 Terminals 53 | . 21 . . 2 14 2 . . 3 5 . 1 . . 5 Fabricators . | . . . . . . . . . . . . . . . . Repair Stations 13 | . 2 . . . 6 . . . 3 2 . . . . . Recycling Units 1 | . . . . . . 1 . . . . . . . . . Scanalyzers 2 | . . . . . 2 . . . . . . . . . . Garrison Access 3 | . . . . . 1 2 . . . . . . . . . Terminal Hacks 82 | . 10 . 1 . 8 1 8 1 2 2 . 1 47 . 1 Record 43 | . . . . . . . 7 . . . . 1 35 . . Part Schematic 6 | . 1 . . . 1 . . . . . . . 4 . . Robot Analysis 5 | . . . . . . . . . . . . . 4 . 1 Prototype ID Bank 5 | . 1 . . . . . . . . . . . 4 . . Open Door 2 | . . . . . . . 1 1 . . . . . . . Level Access Points 2 | . 1 . . . . . . . 1 . . . . . . Branch Access Points 3 | . 1 . . . 1 1 . . . . . . . . . Terminal Index 3 | . 1 . . . 1 . . . . 1 . . . . . Alert Level 1 | . 1 . . . . . . . . . . . . . . Unreport Threat 4 | . 2 . . . 2 . . . . . . . . . . Recall Extermination 1 | . . . . . . . . . . 1 . . . . . Hauler Manifests 3 | . 1 . . . 1 . . . 1 . . . . . . Zone Layout 3 | . 1 . . . 2 . . . . . . . . . . EX-Prototype ID Bank 1 | . . . 1 . . . . . . . . . . . . Fabricator Hacks . | . . . . . . . . . . . . . . . . Repair Station Hacks 12 | . 2 . . . 6 . . . 2 2 . . . . . Scan Component 6 | . 1 . . . 3 . . . 1 1 . . . . . Repair 6 | . 1 . . . 3 . . . 1 1 . . . . . Recycling Unit Hacks 1 | . . . . . . 1 . . . . . . . . . Retrieve Components 1 | . . . . . . 1 . . . . . . . . . Scanalyzer 2 | . . . . . 2 . . . . . . . . . . Insert Component 1 | . . . . . 1 . . . . . . . . . . Analyze 1 | . . . . . 1 . . . . . . . . . . Garrison Access Hacks 2 | . . . . . 1 1 . . . . . . . . . Seal Access 2 | . . . . . 1 1 . . . . . . . . . Unauthorized Hacks 10 | . 4 . . . 4 1 . . . 1 . . . . . Terminals 10 | . 4 . . . 4 1 . . . 1 . . . . . Assimilate 1 | . . . . . 1 . . . . . . . . . . Botnet 9 | . 4 . . . 3 1 . . . 1 . . . . . Fabricators . | . . . . . . . . . . . . . . . . Repair Stations . | . . . . . . . . . . . . . . . . Recycling Units . | . . . . . . . . . . . . . . . . Scanalyzers . | . . . . . . . . . . . . . . . . Garrison Access . | . . . . . . . . . . . . . . . . Data Cores Recovered . | . . . . . . . . . . . . . . . . Used . | . . . . . . . . . . . . . . . . Hacking Detections 21 | . 6 . . 1 5 3 . . 2 2 . . . . 2 Full Trace Events 2 | . . . . . . . . . 1 1 . . . . . Feedback Events . | . . . . . . . . . . . . . . . . Feedback Blocked . | . . . . . . . . . . . . . . . . Robot Schematics Acquired . | . . . . . . . . . . . . . . . . Robots Built . | . . . . . . . . . . . . . . . . Matter . | . . . . . . . . . . . . . . . . Time . | . . . . . . . . . . . . . . . . Total Robot Build Rating . | . . . . . . . . . . . . . . . . Part Schematics Acquired 7 | . 1 . . . 2 . . . . . . . 4 . . Parts Built . | . . . . . . . . . . . . . . . . Matter . | . . . . . . . . . . . . . . . . Time . | . . . . . . . . . . . . . . . . Total Part Build Rating . | . . . . . . . . . . . . . . . . Parts Repaired 6 | . 1 . . . 3 . . . 1 1 . . . . . Time 233 | . 13 . . . 136 . . . 28 56 . . . . . Parts Recycled . | . . . . . . . . . . . . . . . . Recycled Matter . | . . . . . . . . . . . . . . . . Retrieved Matter . | . . . . . . . . . . . . . . . . Retrieved Components 3 | . . . . . . 3 . . . . . . . . . Parts Scanalyzed 1 | . . . . . 1 . . . . . . . . . . Part Schematics Acquired 1 | . . . . . 1 . . . . . . . . . . Parts Damaged 1 | . . . . . 1 . . . . . . . . . . Bothacking | -11 -10 -10 -10 -9 -8 -7 -7 -7 -6 -5 -5 -5 -5 -4 -4 ------------ Run | Scr Mat Min Exi Min Mat Fac Low Low Fac Fac Upp Upp Zhi Pro Fac Used RIF Installer . | . . . . . . . . . . . . . . . . Robots Hacked . | . . . . . . . . . . . . . . . . Non-combat . | . . . . . . . . . . . . . . . . Combat . | . . . . . . . . . . . . . . . . Robot Hacks Applied . | . . . . . . . . . . . . . . . . Relay Couplers Released 5 | . . . . . 1 4 . . . . . . . . . Machine Destruction 1 | . . . . . 1 . . . . . . . . . . Programmers 4 | . . . . . . 4 . . . . . . . . . Robots Rewired 6 | . . . . . . . . 2 . . . 4 . . . Allies Hacked 3 | . . . . . . . . 1 . . . . . 2 . Hacks Repelled . | . . . . . . . . . . . . . . . . Allies | -11 -10 -10 -10 -9 -8 -7 -7 -7 -6 -5 -5 -5 -5 -4 -4 -------- Run | Scr Mat Min Exi Min Mat Fac Low Low Fac Fac Upp Upp Zhi Pro Fac Total Allies 9 | . . 2 . . 1 . . 2 . . . 4 . . . Largest Group 4 | . . 2 2 . 1 1 1 2 . . . 4 4 4 . Highest-Rated Group 95 | . . 45 45 . 10 10 10 40 . . . 95 95 95 . Highest-Rated Ally 31 | . . 31 31 . 10 10 10 20 . . . 25 25 25 . Total Orders 1 | . . . . . . . . . . . . . 1 . . STAY 1 | . . . . . . . . . . . . . 1 . . Ally Attacks 14 | . . 8 . . . . . 3 . . . . . 3 . Total Damage 283 | . . 124 . . . . . 121 . . . . . 38 . Kills 2 | . . 1 . . . . . 1 . . . . . . . Allies Corrupted 1 | . . . . . . . . 1 . . . . . . . Allies Melted . | . . . . . . . . . . . . . . . . Intel | -11 -10 -10 -10 -9 -8 -7 -7 -7 -6 -5 -5 -5 -5 -4 -4 ------- Run | Scr Mat Min Exi Min Mat Fac Low Low Fac Fac Upp Upp Zhi Pro Fac Robot Analysis Total 5 | . . . . . . . . . . . . . 4 . 1 Derelict Logs Recovered 8 | . . 2 . 1 . . 1 . . . 1 2 . 1 . Drone Launches . | . . . . . . . . . . . . . . . . Drone Recoveries . | . . . . . . . . . . . . . . . . Exploration | -11 -10 -10 -10 -9 -8 -7 -7 -7 -6 -5 -5 -5 -5 -4 -4 ------------- Run | Scr Mat Min Exi Min Mat Fac Low Low Fac Fac Upp Upp Zhi Pro Fac Turns Passed 9915 | 96 321 300 156 98 1816 429 449 1730 685 286 737 742 551 594 925 Spaces Moved 5685 | 84 402 402 320 224 697 259 348 914 278 126 481 336 184 282 348 Core 55 | 40 . . . . . . . 1 . . . . . . 14 Treads 344 | . . . . . 59 202 . 5 31 . . . . 47 . Legs 3089 | 44 71 . . . 625 . . 819 247 126 481 247 . 218 211 Wheels 492 | . . . . . . 57 348 87 . . . . . . . Hover 406 | . . . . . . . . . . . . 89 184 17 116 Flight 1299 | . 331 402 320 224 13 . . 2 . . . . . . 7 Fastest Speed 31 | 50 37 37 37 37 31 110 110 110 180 150 120 120 290 150 40 Average Speed 131 | 87 51 37 37 37 123 147 110 168 210 157 124 188 290 184 171 Slowest Speed 1150 | 120 120 37 37 37 200 172 110 600 330 180 150 290 290 290 1150 Overloaded Moves . | . . . . . . . . . . . . . . . . Propulsion Burnouts . | . . . . . . . . . . . . . . . . Robots Hopped 11 | . 6 3 . 2 . . . . . . . . . . . Cave-ins Triggered . | . . . . . . . . . . . . . . . . Teleports 1 | . . . . . . . . . . . . . 1 . . Exploration Rate (%) 44 | 4 49 86 71 72 53 6 57 79 7 5 58 50 63 46 5 Regions Visited 15 Branch Regions 9 Pre-discovered Areas 7 | . . 2 . . . . 1 . . . . . 3 1 . Known Exits Taken 4 | . 1 . . . 1 1 . . 1 . . . . . . Unknown Exits Taken 11 | 1 . 1 1 1 . . 1 1 . 1 1 1 1 1 . Scrap Searched 11 | . . 2 . 1 . . 1 3 . . 2 1 . 1 . Spaces Dug 14 | . . . . . 1 . . . 2 1 10 . . . . Terrain Destroyed 51 | . . . . . 1 . . 1 31 1 13 1 . 2 1 Melee 14 | . . . . . 1 . . . 2 1 10 . . . . Projectile 6 | . . . . . . . . 1 . . 3 1 . . 1 AOE 31 | . . . . . . . . . 29 . . . . 2 . Terrain Rammed . | . . . . . . . . . . . . . . . . Walls Destroyed . | . . . . . . . . . . . . . . . . Machines Disabled . | . . . . . . . . . . . . . . . . Actions | -11 -10 -10 -10 -9 -8 -7 -7 -7 -6 -5 -5 -5 -5 -4 -4 --------- Run | Scr Mat Min Exi Min Mat Fac Low Low Fac Fac Upp Upp Zhi Pro Fac Total 7535 | 98 479 541 357 237 1540 299 374 1018 349 194 548 427 202 320 552 Wait 1128 | 1 30 135 34 14 645 18 2 19 28 43 8 39 . 1 111 Move 5648 | 83 389 395 319 219 696 258 347 913 277 125 480 335 183 281 348 Hop 11 | . 6 3 . 2 . . . . . . . . . . . Pick Up 76 | 3 7 1 2 1 21 5 . 7 10 3 4 6 2 . 4 Fast Attach 117 | 7 8 . . . 23 3 3 11 8 5 4 4 9 9 23 Attach 25 | . . . . . 7 2 1 2 4 . 5 3 . . 1 Detach 6 | 1 . . . . 3 . . . 1 . . . . . 1 Swap 41 | . 5 1 . . 22 1 1 5 1 2 1 . . 1 1 Drop 99 | . 13 1 2 1 42 7 1 8 3 3 2 2 8 . 6 Fire 291 | 3 21 5 . . 80 5 19 41 14 12 34 20 . 22 15 Melee 39 | . . . . . 1 . . 1 3 1 10 . . 6 17 Ram 25 | . . . . . . . . . . . . . . . 25 Kick . | . . . . . . . . . . . . . . . . Crush . | . . . . . . . . . . . . . . . . Escape Stasis . | . . . . . . . . . . . . . . . . Rewire 29 | . . . . . . . . 11 . . . 18 . . . Trap . | . . . . . . . . . . . . . . . . Miscellaneous . | . . . . . . . . . . . . . . . . Route ------- -11/Scrapyard -10/Materials (discovered 5 exits: *Mat x3 / *Min x2) -10/Mines (discovered 2 exits: *Mat / *Exi) -10/Exiles -9/Mines -8/Materials (discovered 2 exits: *Fac x2) -7/Factory (discovered 3 exits: *Fac / *Low x2) -7/Lower Caves -7/Lower Caves -6/Factory (discovered 4 exits: *Fac x4) -5/Factory -5/Upper Caves -5/Upper Caves -5/Zhirov -4/Proximity Caves -4/Factory History --------- Turn | Location | Event 3 | -11/Scrapyard | Discovered new exit (range 15) 97 | -11/Scrapyard | Entered Materials 224 | -10/Materials | Discovered new exit (range 13) 274 | -10/Materials | Discovered new exit (range 10) 292 | -10/Materials | Repaired Flight Unit 400 | -10/Materials | Identified exit to Materials 400 | -10/Materials | Identified exit to Mines 418 | -10/Materials | Entered Mines 484 | -10/Mines | Build established: Scavenger-Mutant 485 | -10/Mines | Learned location of Storage (-9) 592 | -10/Mines | Learned Materials stockpile data 610 | -10/Mines | Discovered exit to Materials (range 14) 624 | -10/Mines | Deemed a non-threat by the Exiles lab entrance 624 | -10/Mines | Discovered new exit (range 5) 718 | -10/Mines | Entered Exiles 718 | -10/Exiles | Accompanied by 2 allies 728 | -10/Exiles | Met 8R-AWN 734 | -10/Exiles | Met EX-HEX 748 | -10/Exiles | Led the pair of lost Derelicts to a safe place 752 | -10/Exiles | Met EX-BIN 757 | -10/Exiles | Aligned with FarCom system 757 | -10/Exiles | Given EX-Vault access code 766 | -10/Exiles | Opened EX-Vault 769 | -10/Exiles | Found Cloak of Protection 778 | -10/Exiles | Warned to stay clear of 0b10 Research branches 788 | -10/Exiles | Met EX-DEC 869 | -10/Exiles | Discovered new exit (range 14) 874 | -10/Exiles | Left Exiles lab with Cloak of Protection 874 | -10/Exiles | Entered Mines 881 | -9/Mines | Received a Rocket Launcher from a helpful Derelict 916 | -9/Mines | Learned location of 1 exit from Materials 965 | -9/Mines | Discovered new exit (range 5) 972 | -9/Mines | Entered Materials 972 | -8/Materials | Evolved 4 slots: Propulsion x2, Utility x2 973 | -8/Materials | Identified exit to Factory 1186 | -8/Materials | Lost 5 parts (3n2w) 2162 | -8/Materials | Repaired Particle Charger 2396 | -8/Materials | Repaired Adv. Beam Rifle 2445 | -8/Materials | Repaired Particle Charger 2581 | -8/Materials | Discovered exit to Factory (range 16) 2788 | -8/Materials | Entered Factory 2788 | -7/Factory | Accompanied by 1 ally 2788 | -7/Factory | Evolved 2 slots: Weapon x2 2887 | -7/Factory | Identified exit to Lower Caves 3031 | -7/Factory | Discovered new exit (range 9) 3091 | -7/Factory | Build established: Scavenger-Skirmisher 3217 | -7/Factory | Entered Lower Caves 3217 | -7/Lower Caves | Accompanied by 1 ally 3330 | -7/Lower Caves | Lost 3 parts (1p1u1w) 3377 | -7/Lower Caves | Learned location of Extension (-4) 3377 | -7/Lower Caves | Learned Research security intel 3377 | -7/Lower Caves | Learned Extension terminal intel 3377 | -7/Lower Caves | Learned Factory garrison access intel 3514 | -7/Lower Caves | Learned Factory terminal intel 3573 | -7/Lower Caves | Attracted the attention of an 0b10 checkpoint 3652 | -7/Lower Caves | Discovered new exit (range 11) 3666 | -7/Lower Caves | Entered another Lower Caves area 3666 | -7/Lower Caves | Accompanied by 1 ally 3785 | -7/Lower Caves | Attracted the attention of an 0b10 outpost 3858 | -7/Lower Caves | Lost 5 parts (1p2n2w) 3905 | -7/Lower Caves | Lost 4 parts (2n2u) 3906 | -7/Lower Caves | Destroyed 13 combat bots 4165 | -7/Lower Caves | P-60 Hacker assimilated allied Gladiator 4b 4225 | -7/Lower Caves | Build established: Scavenger-Mutant 5369 | -7/Lower Caves | Discovered new exit (range 7) 5396 | -7/Lower Caves | Entered Factory 5396 | -6/Factory | Evolved 2 slots: Utility x2 5397 | -6/Factory | Loaded intel: 20 terminal locations 5398 | -6/Factory | Loaded intel: 4 garrison access locations 5587 | -6/Factory | Identified exit to Factory 5680 | -6/Factory | Repaired KE Penetrator 5755 | -6/Factory | Lost 5 parts (2n3w) 6040 | -6/Factory | Build established: Scavenger-Tank 6081 | -6/Factory | Entered another Factory area 6081 | -5/Factory | Evolved 2 slots: Propulsion x2 6168 | -5/Factory | Repaired KE Penetrator 6337 | -5/Factory | Discovered new exit (range 9) 6367 | -5/Factory | Entered Upper Caves 6575 | -5/Upper Caves | Lost 3 parts (2u1w) 6734 | -5/Upper Caves | Spotted B-75 Beast 6742 | -5/Upper Caves | Lost 3 parts (1n1u1w) 6934 | -5/Upper Caves | Encountered a Warlord checkpoint 7006 | -5/Upper Caves | Build established: Scavenger-Mutant 7050 | -5/Upper Caves | Learned Factory interactive machine intel 7097 | -5/Upper Caves | Discovered new exit (range 6) 7104 | -5/Upper Caves | Entered another Upper Caves area 7150 | -5/Upper Caves | Lost 3 parts (2n1w) 7391 | -5/Upper Caves | Attacked by a delusional Derelict stockpiling Unaware 7405 | -5/Upper Caves | Build established: Mutant 7580 | -5/Upper Caves | Learned Factory trap positions 7808 | -5/Upper Caves | Learned Factory stockpile data 7819 | -5/Upper Caves | Discovered new exit (range 8) 7845 | -5/Upper Caves | Build established: Derelict-Tank 7846 | -5/Upper Caves | Entered Zhirov 7846 | -5/Zhirov | Accompanied by 4 allies 7846 | -5/Zhirov | Discovered new exit (range 3) 7899 | -5/Zhirov | Met Zhirov 7962 | -5/Zhirov | Learned location of Quarantine (-3) 7962 | -5/Zhirov | Learned location of Testing (-2) 7962 | -5/Zhirov | Learned location of Command (-1) 8018 | -5/Zhirov | Zhirov requested help retrieving the SGEMP Prototype 8067 | -5/Zhirov | Found Alien Artifact 8067 | -5/Zhirov | Identified Integrated Reactor 8067 | -5/Zhirov | Installed Integrated Reactor, increased core energy generation (+10) 8114 | -5/Zhirov | Found Alien Artifact 8114 | -5/Zhirov | Identified Transdimensional Reconstructor 8114 | -5/Zhirov | Warped through subspace 8397 | -5/Zhirov | Entered Proximity Caves 8397 | -4/Proximity Caves | Accompanied by 4 allies 8616 | -4/Proximity Caves | System corruption reached 10% 8658 | -4/Proximity Caves | Lost 6 parts (4n2w) 8774 | -4/Proximity Caves | Build established: Scavenger-Mutant 8951 | -4/Proximity Caves | Discovered new exit (range 11) 8991 | -4/Proximity Caves | Entered Factory 8991 | -4/Factory | Evolved 2 slots: Power x1, Utility x1 8992 | -4/Factory | Loaded intel: 89 trap records 8994 | -4/Factory | Loaded intel: 48 interactive machine locations 9431 | -4/Factory | System corruption reached 10% 9435 | -4/Factory | Lost 5 parts (3n1u1w) 9446 | -4/Factory | Released all parts (7) 9515 | -4/Factory | Lost 5 parts (1n1u3w) 9706 | -4/Factory | Lost 3 parts (1p2w) 9752 | -4/Factory | Core integrity fell below 50% 9780 | -4/Factory | System corruption reached 30% 9782 | -4/Factory | Lost 6 parts (1p2n3u) 9903 | -4/Factory | Core integrity fell below 20% 9916 | -4/Factory | Destroyed by S-27 Virus with Autogun Last Messages --------------- 09814_ U-05 Engineer builds a Wall. 09815_ U-05 Engineer lays Concrete. 09816_ U-05 Engineer builds a Wall. 09820_ U-05 Engineer lays Concrete. 09821_ U-05 Engineer builds a Wall. 09823_ U-05 Engineer lays Concrete. 09835_ Acquired Imp. Core Analyzer. 09836_ JYQWCLYP20UINJRVJBIXGDTEUDEZ3WJ7 09843_ Acquired Shield Generator. 09860_ System corrupted: Energy discharge (-34). 09878_ System corrupted: Heat flow error (+150). 09889_ Antigrav System destroyed. 09894_ System corrupted: Heat flow error (+175). 09897_ Slammed into S-27 Virus. 09898_ Shield Generator destroyed. 09905_ Slammed into S-27 Virus. 09910_ Mic. Fission Core destroyed. 09914_ ZM/9XN:WPZZWAQK%E1|IHHUXR=VP033WPTCTMV 09916_ Imp. Core Analyzer destroyed. [Achievement: I Think I Know What's Going On] Map ----- +----------------------------------------------------+ | ??????????????????????????????????? | | ?????????????????????????????????## | | ??????????????????????????????? | | ??????????????????????????????? | | ???????????????????????????????? | | ???????????????????#????#??????? | | ???????????????????? ?"" ???????? | | ???????????????????? """ ???????? | | ???????????????????? """ ????????? | | ????????????????????? ????????? | | ????????????????????? ?????????? | | ????????????????????? ?????????? | | ?????????????????????? ?????????? | | ?????????????????????? ?????????? | | ????????????###########+########### | | ????????????# | | ############# | | # # | | # # | | # === # t | | # === # ############+#### | | # === # #????????? ?? | | # # #???????? | | # ss #??????? """ "" | | # ss# #?????# """ "" | | # @ # #?????# """^"" | | # # #?????# "" " | | # # #?????# "" " | | # # #?????# ^ ?? | | # # #?????# ????? | | ############# #?????# ????? | | ???????????? #?????#^ ??????? | | ???????????? #?????# ????????? | | ???????????? #???????????????? | | ???????????? #???????????????? | | ???????????? #???????????????? | | ???????????? #???????????????? | | ???????????? ????????????????? | | ????????????# ??????????????????? | | ?????????????^^^^^????????????????? | | ??????????????????????????????????? | | ??????????????????????????????????? | | ??????????????????????????????????? | | ??????????????????????????????????? | | ??????????????????????????????????? | | ??????????????????????????????????? | | ??????????????????????????????????? | | ??????????????????????????????????? | | ??????????????????????????????????? | | ??????????????????????????????????? | +----------------------------------------------------+ Best States ------------- Heat Dissipation 67 Energy Generation 46 Energy Capacity 1130 Matter Stores 300 Matter Capacity 300 Sight Range 22 Terrain Scan Range 16 Terrain Scan Density 60 Power Amplification 30 Additional Mass Support 12 Armor Coverage 325 Resistance: KI 40 Resistance: TH 20 Resistance: EX 20 Resistance: EM 20 Resistance: I 20 Resistance: S 20 Resistance: P 20 Core Shielding 20 Utility Shielding 90 Weapon Cycling 20 Phase Shifting 5 Evasion (%) 63 Target Analysis 6 Core Analysis 8 Recoil Reduction 2 Particle Charging 30 Salvage Targeting 2 Offensive Hacking 24 Defensive Hacking 10 Item Schematics ----------------- Med. Storage Unit | -10/Materials | Hacked Hcp. Storage Unit | -8/Materials | Hacked Adv. EMP Blaster | -8/Materials | Scanalyzed Assault Drone Bay | -5/Zhirov | Free Exp. Heat Sink | -5/Zhirov | Free Exp. Optical Array | -5/Zhirov | Free Imp. Arc Thrower | -5/Zhirov | Free Robot Schematics ------------------ None Fabricated ------------ Nothing Alien Tech Used ----------------- Integrated Reactor Transdimensional Reconstructor Achievements -------------- I Think I Know What's Going On The Science Guy Challenges ------------ None Game ------ Seed BackupOverloadKatana Manual? 0 Play Time 01:26:48 Cumulative 128.6 hours Start 2020.11.26 @ 08:56:38 End 2020.12.08 @ 15:57:29 Sessions 1 Manual Loads 0 Difficulty Adventurer Special Mode Halloween2020/ForbiddenLore Game No. 104 Rogue 31 Adventurer 35 Explorer 38 Win Type - Total 6 Types 6/0/0/0/0/0/0/0/0 Lore% 53 Gallery% 71 Achievement% 57 Wizard Run 0 Options --------- ASCII 0 Keyboard 0 Movement Mouse Keybinds 0 Fullscreen 2 Font 18/Terminus Map View 76x50 Tactical HUD 1 Map Filters NONE Filters NONE Steam 1 RUN: 8e93cb85-7b44-4056-af9d-3bb11ac70750